[Event "Late-Titled-Tuesday-Blitz-May-14-2024"]
[Site "Chess.com"]
[Date "2024.05.14"]
[Round "1"]
[White "Timurist"]
[Black "nabukatnezarr"]
[Result "1-0"]
[WhiteElo "2333"]
[BlackElo "2620"]
[TimeControl "180+1"]
[EndTime "14:06:17 PDT"]
[Termination "Timurist won by checkmate"]

1. e4 {[%clk 0:02:52.1]} 1... e5 {[%clk 0:02:55.1]} 2. Nf3 {[%clk 0:02:51.2]}
2... Nc6 {[%clk 0:02:55.2]} 3. d4 {[%clk 0:02:51.7]} 3... exd4 {[%clk
0:02:55.2]} 4. Bc4 {[%clk 0:02:52.3]} 4... Nf6 {[%clk 0:02:55]} 5. e5 {[%clk
0:02:46.8]} 5... d5 {[%clk 0:02:54.2]} 6. Bb5 {[%clk 0:02:47.3]} 6... Ne4 {[%clk
0:02:54.2]} 7. Nxd4 {[%clk 0:02:48]} 7... Bd7 {[%clk 0:02:54.5]} 8. Bxc6 {[%clk
0:02:48]} 8... bxc6 {[%clk 0:02:55.4]} 9. O-O {[%clk 0:02:48.8]} 9... Bc5 {[%clk
0:02:55.6]} 10. f3 {[%clk 0:02:49.4]} 10... Ng5 {[%clk 0:02:41.5]} 11. f4 {[%clk
0:02:49.7]} 11... Ne6 {[%clk 0:02:05.6]} 12. c3 {[%clk 0:02:35.3]} 12... Bb6
{[%clk 0:01:58.9]} 13. Be3 {[%clk 0:02:32]} 13... c5 {[%clk 0:01:50.8]} 14. Nb3
{[%clk 0:02:31.8]} 14... Ba4 {[%clk 0:01:30.7]} 15. f5 {[%clk 0:02:26.4]} 15...
Nf8 {[%clk 0:00:47]} 16. Qg4 {[%clk 0:02:25.6]} 16... Bxb3 {[%clk 0:00:40.7]}
17. Qxg7 {[%clk 0:02:25.4]} 17... Bc4 {[%clk 0:00:37.1]} 18. Re1 {[%clk
0:02:21.3]} 18... Qh4 {[%clk 0:00:25.8]} 19. Bf2 {[%clk 0:02:17.3]} 19... Qf4
{[%clk 0:00:23.4]} 20. Qxh8 {[%clk 0:02:11.1]} 20... Qxf5 {[%clk 0:00:23.6]} 21.
Nd2 {[%clk 0:02:04.2]} 21... Bd3 {[%clk 0:00:18.7]} 22. Nb3 {[%clk 0:01:54]}
22... c4 {[%clk 0:00:16.4]} 23. Nc5 {[%clk 0:01:45.7]} 23... Qg6 {[%clk
0:00:10.5]} 24. Qf6 {[%clk 0:01:43.1]} 24... Bxc5 {[%clk 0:00:07]} 25. Bxc5
{[%clk 0:01:41.4]} 25... Qxf6 {[%clk 0:00:07.5]} 26. exf6+ {[%clk 0:01:42.3]}
26... Ne6 {[%clk 0:00:08.3]} 27. Bd4 {[%clk 0:01:42.3]} 27... Kd7 {[%clk
0:00:08.6]} 28. Re5 {[%clk 0:01:39]} 28... Kc6 {[%clk 0:00:07.9]} 29. Rae1
{[%clk 0:01:38]} 29... Rg8 {[%clk 0:00:08.3]} 30. Rxe6+ {[%clk 0:01:34.6]} 30...
fxe6 {[%clk 0:00:09.2]} 31. Rxe6+ {[%clk 0:01:35.1]} 31... Kd7 {[%clk
0:00:09.5]} 32. Re7+ {[%clk 0:01:35.4]} 32... Kd6 {[%clk 0:00:08.8]} 33. b4
{[%clk 0:01:26.4]} 33... cxb3 {[%clk 0:00:08.1]} 34. axb3 {[%clk 0:01:26.7]}
34... Bg6 {[%clk 0:00:07.9]} 35. b4 {[%clk 0:01:26.3]} 35... Kc6 {[%clk
0:00:06.5]} 36. Be5 {[%clk 0:01:26.4]} 36... Rc8 {[%clk 0:00:06.1]} 37. Bd4
{[%clk 0:01:26.1]} 37... Kd6 {[%clk 0:00:06.3]} 38. Bc5+ {[%clk 0:01:25.3]}
38... Kc6 {[%clk 0:00:06.7]} 39. Bxa7 {[%clk 0:01:26.2]} 39... Rf8 {[%clk
0:00:06]} 40. Bd4 {[%clk 0:01:26.3]} 40... Kd6 {[%clk 0:00:05.7]} 41. g4 {[%clk
0:01:24.3]} 41... c6 {[%clk 0:00:04.5]} 42. Be5# {[%clk 0:01:23.2]} 1-0

[Event "Late-Titled-Tuesday-Blitz-May-14-2024"]
[Site "Chess.com"]
[Date "2024.05.14"]
[Round "1"]
[White "BilodeauA"]
[Black "Licancabur"]
[Result "1-0"]
[WhiteElo "2897"]
[BlackElo "2501"]
[TimeControl "180+1"]
[EndTime "14:06:27 PDT"]
[Termination "BilodeauA won on time"]

1. d4 {[%clk 0:03:00.9]} 1... d5 {[%clk 0:02:59]} 2. Nc3 {[%clk 0:03:01.1]} 2...
Nf6 {[%clk 0:02:57.8]} 3. Bf4 {[%clk 0:03:01]} 3... a6 {[%clk 0:02:48.1]} 4. e3
{[%clk 0:03:00.8]} 4... e6 {[%clk 0:02:43.2]} 5. g4 {[%clk 0:03:00.6]} 5... Bb4
{[%clk 0:02:35.5]} 6. Ne2 {[%clk 0:03:00.5]} 6... Nxg4 {[%clk 0:02:19.1]} 7. Rg1
{[%clk 0:03:00.3]} 7... Qh4 {[%clk 0:02:11.6]} 8. Rg3 {[%clk 0:03:00]} 8... h5
{[%clk 0:01:38.3]} 9. h3 {[%clk 0:02:52.5]} 9... g5 {[%clk 0:01:25.6]} 10. Bxc7
{[%clk 0:02:37.8]} 10... Nh6 {[%clk 0:01:18.8]} 11. a3 {[%clk 0:02:35.2]} 11...
Be7 {[%clk 0:01:12.7]} 12. Qd2 {[%clk 0:02:03.3]} 12... Nc6 {[%clk 0:01:09]} 13.
O-O-O {[%clk 0:02:01.6]} 13... Bd7 {[%clk 0:01:00.4]} 14. Rg2 {[%clk 0:01:37.1]}
14... g4 {[%clk 0:00:52.3]} 15. hxg4 {[%clk 0:01:35]} 15... hxg4 {[%clk
0:00:44.9]} 16. Rh2 {[%clk 0:01:34.2]} 16... Qf6 {[%clk 0:00:41.8]} 17. e4
{[%clk 0:01:28.2]} 17... Rc8 {[%clk 0:00:36.6]} 18. Bf4 {[%clk 0:01:26.6]} 18...
Ng8 {[%clk 0:00:23.1]} 19. exd5 {[%clk 0:01:25.4]} 19... Rxh2 {[%clk 0:00:19.3]}
20. dxc6 {[%clk 0:01:25.3]} 20... Bxc6 {[%clk 0:00:17.2]} 21. Bxh2 {[%clk
0:01:24.8]} 21... Qxf2 {[%clk 0:00:16.7]} 22. Bg3 {[%clk 0:01:22.4]} 22... Qf5
{[%clk 0:00:15.9]} 23. Nf4 {[%clk 0:01:18.7]} 23... Bg5 {[%clk 0:00:15.7]} 24.
Bd3 {[%clk 0:01:19.1]} 24... Qa5 {[%clk 0:00:13.2]} 25. Kb1 {[%clk 0:01:18.8]}
25... Nf6 {[%clk 0:00:13]} 26. d5 {[%clk 0:01:10.6]} 26... Bxd5 {[%clk
0:00:12.3]} 27. Ncxd5 {[%clk 0:01:09.3]} 27... Qxd2 {[%clk 0:00:10.1]} 28. Nxf6+
{[%clk 0:01:09.8]} 28... Ke7 {[%clk 0:00:09.8]} 29. N6d5+ {[%clk 0:01:05.4]}
29... exd5 {[%clk 0:00:09.2]} 30. Rxd2 {[%clk 0:01:06.1]} 30... Rh8 {[%clk
0:00:07.1]} 31. Re2+ {[%clk 0:01:06.2]} 31... Kf8 {[%clk 0:00:06.1]} 32. Nxd5
{[%clk 0:01:04.4]} 32... Rh1+ {[%clk 0:00:05.4]} 33. Ka2 {[%clk 0:01:04.3]}
33... Rg1 {[%clk 0:00:06]} 34. Bd6+ {[%clk 0:01:04.4]} 34... Kg7 {[%clk
0:00:06.3]} 35. Ne3 {[%clk 0:01:03.4]} 35... g3 {[%clk 0:00:04.4]} 36. Bxg3
{[%clk 0:01:03.7]} 1-0

[Event "Late-Titled-Tuesday-Blitz-May-14-2024"]
[Site "Chess.com"]
[Date "2024.05.14"]
[Round "1"]
[White "Pingah9"]
[Black "Sanan_Sjugirov"]
[Result "0-1"]
[WhiteElo "2535"]
[BlackElo "3041"]
[TimeControl "180+1"]
[EndTime "14:06:32 PDT"]
[Termination "Sanan_Sjugirov won by resignation"]

1. e4 {[%clk 0:03:00.9]} 1... c5 {[%clk 0:02:54.1]} 2. Nc3 {[%clk 0:03:00.8]}
2... Nc6 {[%clk 0:02:52.4]} 3. g3 {[%clk 0:03:01.1]} 3... g6 {[%clk 0:02:51.9]}
4. Bg2 {[%clk 0:03:01.7]} 4... Bg7 {[%clk 0:02:52.6]} 5. d3 {[%clk 0:03:02.4]}
5... d6 {[%clk 0:02:53.2]} 6. Be3 {[%clk 0:03:03]} 6... Rb8 {[%clk 0:02:52.5]}
7. a4 {[%clk 0:03:02.4]} 7... b6 {[%clk 0:02:49.5]} 8. Qd2 {[%clk 0:03:01.8]}
8... Bb7 {[%clk 0:02:49.8]} 9. Nge2 {[%clk 0:03:01.2]} 9... Nf6 {[%clk
0:02:42.7]} 10. h3 {[%clk 0:02:51.5]} 10... O-O {[%clk 0:02:41.9]} 11. Bh6
{[%clk 0:02:50.9]} 11... e5 {[%clk 0:02:24.6]} 12. Bxg7 {[%clk 0:02:49.6]} 12...
Kxg7 {[%clk 0:02:25.5]} 13. O-O {[%clk 0:02:49.5]} 13... Nd4 {[%clk 0:02:20.6]}
14. Nxd4 {[%clk 0:02:40.6]} 14... cxd4 {[%clk 0:02:16]} 15. Nd5 {[%clk
0:02:39.1]} 15... Bxd5 {[%clk 0:02:05.2]} 16. exd5 {[%clk 0:02:40]} 16... Rc8
{[%clk 0:02:04.1]} 17. c4 {[%clk 0:02:39.7]} 17... a5 {[%clk 0:01:56.9]} 18. b4
{[%clk 0:02:29.4]} 18... axb4 {[%clk 0:01:56.6]} 19. Qxb4 {[%clk 0:02:29.2]}
19... Qc7 {[%clk 0:01:51.8]} 20. f4 {[%clk 0:02:23.3]} 20... Nd7 {[%clk
0:01:48.9]} 21. fxe5 {[%clk 0:01:58.2]} 21... Nxe5 {[%clk 0:01:42.1]} 22. Qd2
{[%clk 0:01:56.8]} 22... Ra8 {[%clk 0:01:37.8]} 23. h4 {[%clk 0:01:41.7]} 23...
h5 {[%clk 0:01:35.9]} 24. Bh3 {[%clk 0:01:38.1]} 24... f5 {[%clk 0:01:31]} 25.
Rf4 {[%clk 0:01:28]} 25... Qd7 {[%clk 0:01:23.2]} 26. Bg2 {[%clk 0:01:23.9]}
26... Rxa4 {[%clk 0:01:21.6]} 27. Rxa4 {[%clk 0:01:23.8]} 27... Qxa4 {[%clk
0:01:22.5]} 28. Kh2 {[%clk 0:01:10]} 28... Ra8 {[%clk 0:01:05.9]} 29. Qf2 {[%clk
0:01:00.8]} 29... Qa1 {[%clk 0:00:57.4]} 30. Qxd4 {[%clk 0:00:49.4]} 30... Qxd4
{[%clk 0:00:55.3]} 31. Rxd4 {[%clk 0:00:50.3]} 31... Ra2 {[%clk 0:00:55]} 32.
Kg1 {[%clk 0:00:49.1]} 32... Rd2 {[%clk 0:00:52.1]} 33. Kf1 {[%clk 0:00:42.1]}
33... Rxd3 {[%clk 0:00:47.4]} 34. Rxd3 {[%clk 0:00:41.4]} 34... Nxd3 {[%clk
0:00:48.3]} 35. Bf3 {[%clk 0:00:40.5]} 35... Kf6 {[%clk 0:00:47.6]} 36. Be2
{[%clk 0:00:39.1]} 36... Nc5 {[%clk 0:00:46.9]} 37. Kf2 {[%clk 0:00:38.6]} 37...
Ke5 {[%clk 0:00:47.5]} 38. Ke3 {[%clk 0:00:38.6]} 38... Ne4 {[%clk 0:00:47.4]}
39. Kf3 {[%clk 0:00:36.4]} 39... Nd2+ {[%clk 0:00:37.4]} 40. Ke3 {[%clk
0:00:36.7]} 40... Nb3 {[%clk 0:00:38.3]} 41. Kf3 {[%clk 0:00:36]} 41... Nd4+
{[%clk 0:00:38.1]} 0-1

[Event "Late-Titled-Tuesday-Blitz-May-14-2024"]
[Site "Chess.com"]
[Date "2024.05.14"]
[Round "1"]
[White "baki83"]
[Black "Love7Unicorn"]
[Result "1-0"]
[WhiteElo "2923"]
[BlackElo "2520"]
[TimeControl "180+1"]
[EndTime "14:06:33 PDT"]
[Termination "baki83 won on time"]

1. e4 {[%clk 0:02:47]} 1... c5 {[%clk 0:02:55.1]} 2. Nf3 {[%clk 0:02:46.1]} 2...
d6 {[%clk 0:02:54.6]} 3. Bb5+ {[%clk 0:02:45.7]} 3... Bd7 {[%clk 0:02:54.5]} 4.
c4 {[%clk 0:02:44.7]} 4... e5 {[%clk 0:02:51]} 5. Nc3 {[%clk 0:02:44.2]} 5... g6
{[%clk 0:02:51.1]} 6. h4 {[%clk 0:02:43.5]} 6... Nc6 {[%clk 0:02:39.2]} 7. h5
{[%clk 0:02:42.1]} 7... Bg7 {[%clk 0:02:38.9]} 8. d3 {[%clk 0:02:41.4]} 8... Bg4
{[%clk 0:02:32.6]} 9. h6 {[%clk 0:02:32.8]} 9... Bf6 {[%clk 0:02:09.3]} 10. Nd5
{[%clk 0:02:31.5]} 10... a6 {[%clk 0:02:04]} 11. Ba4 {[%clk 0:02:24.9]} 11...
Bxf3 {[%clk 0:01:53.5]} 12. Qxf3 {[%clk 0:02:23]} 12... b5 {[%clk 0:01:28.1]}
13. cxb5 {[%clk 0:02:18.8]} 13... Nd4 {[%clk 0:01:26.4]} 14. b6+ {[%clk
0:02:15]} 14... Kf8 {[%clk 0:01:23]} 15. Qd1 {[%clk 0:01:58.3]} 15... Bg5 {[%clk
0:01:22.2]} 16. Be3 {[%clk 0:01:53.4]} 16... Ne6 {[%clk 0:00:27.8]} 17. Nc7
{[%clk 0:01:37.1]} 17... Bxe3 {[%clk 0:00:15.7]} 18. Nxe6+ {[%clk 0:01:21.7]}
18... fxe6 {[%clk 0:00:16.6]} 19. fxe3 {[%clk 0:01:22]} 19... Nf6 {[%clk
0:00:12.7]} 20. O-O {[%clk 0:01:19.2]} 20... Ke7 {[%clk 0:00:12.7]} 21. Qf3
{[%clk 0:00:46.1]} 21... Rf8 {[%clk 0:00:12.5]} 22. Bb3 {[%clk 0:00:45.3]} 22...
Rb8 {[%clk 0:00:04.9]} 23. Qh3 {[%clk 0:00:43.3]} 23... Qd7 {[%clk 0:00:05.2]}
24. Rf2 {[%clk 0:00:43.1]} 24... g5 {[%clk 0:00:04.5]} 25. Raf1 {[%clk
0:00:43.5]} 25... Rxb6 {[%clk 0:00:04.4]} 26. Qg3 {[%clk 0:00:38.6]} 26... Rf7
{[%clk 0:00:02.4]} 27. Qxg5 {[%clk 0:00:34.9]} 1-0

[Event "Late-Titled-Tuesday-Blitz-May-14-2024"]
[Site "Chess.com"]
[Date "2024.05.14"]
[Round "1"]
[White "cthulhuuu"]
[Black "MarkusRagger"]
[Result "1-0"]
[WhiteElo "2476"]
[BlackElo "2820"]
[TimeControl "180+1"]
[EndTime "14:06:33 PDT"]
[Termination "cthulhuuu won by resignation"]

1. e4 {[%clk 0:02:57.4]} 1... e5 {[%clk 0:02:58.4]} 2. Nf3 {[%clk 0:02:57.1]}
2... Nc6 {[%clk 0:02:55.1]} 3. d3 {[%clk 0:02:57.1]} 3... Nf6 {[%clk 0:02:53.4]}
4. g3 {[%clk 0:02:57.3]} 4... d5 {[%clk 0:02:45.4]} 5. exd5 {[%clk 0:02:58.2]}
5... Nxd5 {[%clk 0:02:45.8]} 6. Bg2 {[%clk 0:02:58.6]} 6... Be7 {[%clk
0:02:38.1]} 7. O-O {[%clk 0:02:59]} 7... O-O {[%clk 0:02:37.8]} 8. Re1 {[%clk
0:02:59.1]} 8... Bf6 {[%clk 0:02:22.2]} 9. Nc3 {[%clk 0:02:54.7]} 9... Nxc3
{[%clk 0:02:21]} 10. bxc3 {[%clk 0:02:55.6]} 10... Bg4 {[%clk 0:02:08]} 11. h3
{[%clk 0:02:51.8]} 11... Bh5 {[%clk 0:02:07.3]} 12. Rb1 {[%clk 0:02:49.9]} 12...
Rb8 {[%clk 0:01:57.4]} 13. g4 {[%clk 0:02:48.5]} 13... Bg6 {[%clk 0:01:57]} 14.
Nd2 {[%clk 0:02:48.9]} 14... Bg5 {[%clk 0:01:44.5]} 15. Ne4 {[%clk 0:02:47.3]}
15... Bxc1 {[%clk 0:01:43.7]} 16. Qxc1 {[%clk 0:02:47.7]} 16... b6 {[%clk
0:01:36.6]} 17. Nc5 {[%clk 0:02:29.2]} 17... Qd6 {[%clk 0:01:31.1]} 18. Ne4
{[%clk 0:01:48.2]} 18... Qd7 {[%clk 0:01:30.6]} 19. Qa3 {[%clk 0:01:33.7]} 19...
Ne7 {[%clk 0:01:28.7]} 20. Ng3 {[%clk 0:01:24.1]} 20... Nd5 {[%clk 0:01:10.7]}
21. Rxe5 {[%clk 0:01:16.5]} 21... Nf4 {[%clk 0:01:10.4]} 22. Re7 {[%clk
0:00:59.6]} 22... Qd8 {[%clk 0:01:10.3]} 23. Rbe1 {[%clk 0:00:58.4]} 23... a5
{[%clk 0:01:09.7]} 24. Qa4 {[%clk 0:00:53.9]} 24... Ne6 {[%clk 0:01:06.6]} 25.
Qd7 {[%clk 0:00:50.6]} 25... Rc8 {[%clk 0:00:55]} 26. Nf5 {[%clk 0:00:46.9]}
26... Qxd7 {[%clk 0:00:32]} 27. Rxd7 {[%clk 0:00:46.5]} 27... Bxf5 {[%clk
0:00:30.3]} 28. gxf5 {[%clk 0:00:47.4]} 28... Nc5 {[%clk 0:00:30.7]} 29. Rde7
{[%clk 0:00:47.7]} 29... Rfd8 {[%clk 0:00:23.9]} 30. d4 {[%clk 0:00:42.7]} 30...
Nd7 {[%clk 0:00:23.3]} 31. Bc6 {[%clk 0:00:37.8]} 31... Rb8 {[%clk 0:00:23.7]}
32. Rxd7 {[%clk 0:00:37.1]} 1-0

[Event "Late-Titled-Tuesday-Blitz-May-14-2024"]
[Site "Chess.com"]
[Date "2024.05.14"]
[Round "1"]
[White "SchmakAttack"]
[Black "Nick12772"]
[Result "1-0"]
[WhiteElo "2781"]
[BlackElo "2439"]
[TimeControl "180+1"]
[EndTime "14:06:39 PDT"]
[Termination "SchmakAttack won by resignation"]

1. d4 {[%clk 0:02:58.3]} 1... Nf6 {[%clk 0:02:59.7]} 2. Nf3 {[%clk 0:02:57.1]}
2... g6 {[%clk 0:02:59.7]} 3. g3 {[%clk 0:02:57]} 3... Bg7 {[%clk 0:03:00.1]} 4.
Bg2 {[%clk 0:02:57.7]} 4... O-O {[%clk 0:03:01]} 5. O-O {[%clk 0:02:57.9]} 5...
c6 {[%clk 0:03:01.9]} 6. a4 {[%clk 0:02:53.8]} 6... d5 {[%clk 0:03:02.8]} 7. b3
{[%clk 0:02:39.6]} 7... Bg4 {[%clk 0:03:00.9]} 8. h3 {[%clk 0:02:32.9]} 8...
Bxf3 {[%clk 0:03:01.1]} 9. exf3 {[%clk 0:02:24.9]} 9... Nbd7 {[%clk 0:03:02]}
10. f4 {[%clk 0:02:25.1]} 10... e6 {[%clk 0:03:02.2]} 11. c4 {[%clk 0:02:18.9]}
11... dxc4 {[%clk 0:02:59.1]} 12. bxc4 {[%clk 0:02:19.8]} 12... Nb6 {[%clk
0:02:51.1]} 13. Na3 {[%clk 0:02:07.7]} 13... Qd7 {[%clk 0:02:43.8]} 14. a5
{[%clk 0:02:03.9]} 14... Nc8 {[%clk 0:02:41.9]} 15. Be3 {[%clk 0:02:02.9]} 15...
Ne7 {[%clk 0:02:38.9]} 16. Qa4 {[%clk 0:01:57.2]} 16... Rfd8 {[%clk 0:02:36.9]}
17. Rab1 {[%clk 0:01:54.2]} 17... Nf5 {[%clk 0:02:36.6]} 18. Nc2 {[%clk
0:01:48.9]} 18... Ne8 {[%clk 0:02:20.4]} 19. a6 {[%clk 0:01:47.8]} 19... Ned6
{[%clk 0:01:37.1]} 20. axb7 {[%clk 0:01:44.2]} 20... Rab8 {[%clk 0:01:37.4]} 21.
Bxc6 {[%clk 0:01:34.9]} 21... Qc7 {[%clk 0:01:37.7]} 22. d5 {[%clk 0:01:33.9]}
22... Nxe3 {[%clk 0:01:32.7]} 23. Nxe3 {[%clk 0:01:34.2]} 23... Bd4 {[%clk
0:01:18.5]} 24. Rfe1 {[%clk 0:01:27.8]} 24... Nxb7 {[%clk 0:01:15]} 25. Bxb7
{[%clk 0:01:11.8]} 25... Rxb7 {[%clk 0:01:10.1]} 26. dxe6 {[%clk 0:01:11.7]}
26... fxe6 {[%clk 0:00:59.4]} 27. Nc2 {[%clk 0:00:49.9]} 27... Rxb1 {[%clk
0:00:53.5]} 28. Rxb1 {[%clk 0:00:50.8]} 28... Bb6 {[%clk 0:00:49.7]} 29. Qb5
{[%clk 0:00:35]} 29... Rd2 {[%clk 0:00:40.5]} 30. Ne3 {[%clk 0:00:35.1]} 30...
Kg7 {[%clk 0:00:24.3]} 31. Qb4 {[%clk 0:00:24.9]} 31... Kf7 {[%clk 0:00:14.9]}
32. Qxd2 {[%clk 0:00:23.8]} 1-0

[Event "Late-Titled-Tuesday-Blitz-May-14-2024"]
[Site "Chess.com"]
[Date "2024.05.14"]
[Round "1"]
[White "MeisterJabo"]
[Black "CarlosAlbornoz"]
[Result "0-1"]
[WhiteElo "2473"]
[BlackElo "2848"]
[TimeControl "180+1"]
[EndTime "14:06:40 PDT"]
[Termination "CarlosAlbornoz won by checkmate"]

1. c4 {[%clk 0:03:00.9]} 1... c5 {[%clk 0:02:58.5]} 2. g3 {[%clk 0:03:00]} 2...
g6 {[%clk 0:02:58.4]} 3. Bg2 {[%clk 0:02:59.1]} 3... Bg7 {[%clk 0:02:58.9]} 4.
Nc3 {[%clk 0:02:59.7]} 4... Nc6 {[%clk 0:02:58.4]} 5. a3 {[%clk 0:03:00.1]} 5...
Nf6 {[%clk 0:02:58.2]} 6. Rb1 {[%clk 0:03:00.2]} 6... a5 {[%clk 0:02:56.2]} 7.
e4 {[%clk 0:02:59.5]} 7... d6 {[%clk 0:02:56]} 8. Nge2 {[%clk 0:02:59.5]} 8...
O-O {[%clk 0:02:56.1]} 9. O-O {[%clk 0:03:00]} 9... Nd7 {[%clk 0:02:53.4]} 10.
d3 {[%clk 0:02:58.9]} 10... b6 {[%clk 0:02:52]} 11. Be3 {[%clk 0:02:55.9]} 11...
Nd4 {[%clk 0:02:51.1]} 12. b4 {[%clk 0:02:48.7]} 12... axb4 {[%clk 0:02:50.3]}
13. axb4 {[%clk 0:02:49.6]} 13... h5 {[%clk 0:02:26.5]} 14. Bxd4 {[%clk
0:02:31]} 14... cxd4 {[%clk 0:02:26.3]} 15. Nb5 {[%clk 0:02:31.2]} 15... h4
{[%clk 0:02:25.6]} 16. Nbxd4 {[%clk 0:02:28]} 16... Ne5 {[%clk 0:02:24.9]} 17.
Nf3 {[%clk 0:02:03.7]} 17... h3 {[%clk 0:02:23.2]} 18. Bh1 {[%clk 0:02:03.5]}
18... Ng4 {[%clk 0:02:14.6]} 19. Qd2 {[%clk 0:01:54.6]} 19... Bh6 {[%clk
0:02:10.9]} 20. Qb2 {[%clk 0:01:46.4]} 20... Bb7 {[%clk 0:02:10.1]} 21. Nh4
{[%clk 0:01:36]} 21... Ne5 {[%clk 0:02:05.1]} 22. Rfd1 {[%clk 0:01:20.8]} 22...
b5 {[%clk 0:02:05.3]} 23. Nf3 {[%clk 0:00:52.2]} 23... Bg7 {[%clk 0:01:47]} 24.
Nxe5 {[%clk 0:00:51]} 24... Bxe5 {[%clk 0:01:47.9]} 25. d4 {[%clk 0:00:51.2]}
25... Bg7 {[%clk 0:01:48.3]} 26. c5 {[%clk 0:00:47.5]} 26... Qd7 {[%clk
0:01:43]} 27. Qd2 {[%clk 0:00:41.8]} 27... dxc5 {[%clk 0:01:37.7]} 28. bxc5
{[%clk 0:00:41.8]} 28... Ra4 {[%clk 0:01:30.8]} 29. d5 {[%clk 0:00:39.3]} 29...
Ba6 {[%clk 0:01:28.6]} 30. Qf4 {[%clk 0:00:33.7]} 30... b4 {[%clk 0:01:25.3]}
31. Nd4 {[%clk 0:00:29.9]} 31... e5 {[%clk 0:01:21.9]} 32. dxe6 {[%clk
0:00:29.9]} 32... fxe6 {[%clk 0:01:22.8]} 33. Qd6 {[%clk 0:00:28.3]} 33... Bc8
{[%clk 0:01:02.7]} 34. e5 {[%clk 0:00:20.6]} 34... Qf7 {[%clk 0:00:58.9]} 35. f4
{[%clk 0:00:14.7]} 35... b3 {[%clk 0:00:57.1]} 36. Nxb3 {[%clk 0:00:14.1]} 36...
Rxf4 {[%clk 0:00:55.2]} 37. gxf4 {[%clk 0:00:07]} 37... Qxf4 {[%clk 0:00:56.1]}
38. Rd4 {[%clk 0:00:02.1]} 38... Qf2# {[%clk 0:00:55.1]} 0-1

[Event "Late-Titled-Tuesday-Blitz-May-14-2024"]
[Site "Chess.com"]
[Date "2024.05.14"]
[Round "1"]
[White "Aygehovit1992"]
[Black "XeresLt"]
[Result "1-0"]
[WhiteElo "2849"]
[BlackElo "2474"]
[TimeControl "180+1"]
[EndTime "14:06:42 PDT"]
[Termination "Aygehovit1992 won by resignation"]

1. e4 {[%clk 0:03:00.9]} 1... c5 {[%clk 0:02:59.5]} 2. Nf3 {[%clk 0:03:00.9]}
2... Nc6 {[%clk 0:02:59.8]} 3. Bb5 {[%clk 0:03:00.8]} 3... g6 {[%clk 0:02:59.3]}
4. O-O {[%clk 0:03:00.4]} 4... Bg7 {[%clk 0:02:59.3]} 5. Re1 {[%clk 0:03:00.9]}
5... e5 {[%clk 0:02:59.6]} 6. Bxc6 {[%clk 0:02:56.7]} 6... dxc6 {[%clk
0:02:59.3]} 7. d3 {[%clk 0:02:57]} 7... Qc7 {[%clk 0:02:58.1]} 8. a3 {[%clk
0:02:57]} 8... Nf6 {[%clk 0:02:57.1]} 9. b4 {[%clk 0:02:56.8]} 9... cxb4 {[%clk
0:02:55.7]} 10. axb4 {[%clk 0:02:57.7]} 10... O-O {[%clk 0:02:56]} 11. Bb2
{[%clk 0:02:57.3]} 11... Re8 {[%clk 0:02:51.9]} 12. Nbd2 {[%clk 0:02:57]} 12...
Bg4 {[%clk 0:02:43.2]} 13. h3 {[%clk 0:02:55.6]} 13... Bxf3 {[%clk 0:02:43.4]}
14. Nxf3 {[%clk 0:02:50.9]} 14... a5 {[%clk 0:02:39.9]} 15. bxa5 {[%clk
0:02:41.2]} 15... Rxa5 {[%clk 0:02:37.4]} 16. Bc3 {[%clk 0:02:40.9]} 16... Rxa1
{[%clk 0:02:34.2]} 17. Qxa1 {[%clk 0:02:41.8]} 17... Nd7 {[%clk 0:02:34.2]} 18.
Rb1 {[%clk 0:02:41.2]} 18... b5 {[%clk 0:02:33.2]} 19. Qa6 {[%clk 0:02:30.4]}
19... Nc5 {[%clk 0:02:29.1]} 20. Qa3 {[%clk 0:02:29.8]} 20... Na4 {[%clk
0:02:27.5]} 21. Ba1 {[%clk 0:02:28.6]} 21... Bf8 {[%clk 0:02:22.7]} 22. Qa2
{[%clk 0:02:22.5]} 22... Nc5 {[%clk 0:01:57.6]} 23. h4 {[%clk 0:02:20.1]} 23...
h5 {[%clk 0:01:56.5]} 24. Ng5 {[%clk 0:02:17.5]} 24... Ne6 {[%clk 0:01:54.8]}
25. Nxe6 {[%clk 0:02:15.3]} 25... Rxe6 {[%clk 0:01:55.1]} 26. Qa8 {[%clk
0:02:15.1]} 26... Kg7 {[%clk 0:01:54.3]} 27. f4 {[%clk 0:02:05.4]} 27... Bc5+
{[%clk 0:01:50.7]} 28. Kh2 {[%clk 0:02:01.8]} 28... Bd4 {[%clk 0:01:20.7]} 29.
Bxd4 {[%clk 0:02:00]} 29... exd4 {[%clk 0:01:21.1]} 30. g3 {[%clk 0:02:00.4]}
30... Qe7 {[%clk 0:01:14]} 31. Ra1 {[%clk 0:01:57.2]} 31... Qc5 {[%clk
0:01:11.7]} 32. Qa3 {[%clk 0:01:51.5]} 32... Qxc2+ {[%clk 0:01:09]} 33. Kh3
{[%clk 0:01:51.4]} 33... Qe2 {[%clk 0:01:05.6]} 34. Ra2 {[%clk 0:01:44.2]} 34...
Qf1+ {[%clk 0:01:00.4]} 35. Kh2 {[%clk 0:01:44]} 35... b4 {[%clk 0:00:54]} 36.
Qb3 {[%clk 0:01:39.2]} 36... c5 {[%clk 0:00:52.4]} 37. Qc4 {[%clk 0:01:21.1]}
37... Rb6 {[%clk 0:00:24]} 38. Qxc5 {[%clk 0:01:18.2]} 38... b3 {[%clk
0:00:18.6]} 39. Qxd4+ {[%clk 0:01:18.3]} 39... Rf6 {[%clk 0:00:13.9]} 40. Rb2
{[%clk 0:01:14.9]} 40... Qd1 {[%clk 0:00:14.2]} 41. Qc3 {[%clk 0:01:12.5]} 41...
Kh7 {[%clk 0:00:04.8]} 42. Qxf6 {[%clk 0:01:09.8]} 42... Qxd3 {[%clk 0:00:04.9]}
43. Qxf7+ {[%clk 0:01:09.2]} 43... Kh6 {[%clk 0:00:05.6]} 44. Qxb3 {[%clk
0:01:08]} 44... Qxe4 {[%clk 0:00:06.2]} 45. Qc3 {[%clk 0:01:06.1]} 1-0